bitfinex-derivatives/quotes_ETHF0:USTF0_20251229
["timestamp","ask_amount","ask_price","bid_price","bid_amount"]
[1767039002834,0.17343594,2937.7,2936.4,0.0051156]
[1767039004633,0.17041,2937.6,2936.4,0.0051156]
[1767039004929,0.00303594,2937.7,2936.4,0.0051156]
[1767039005525,0.17042,2937.3,2936.4,0.0051156]
[1767039007125,0.00303594,2937.7,2936.4,0.0051156]
[1767039009340,0.17036,2938.4,2936.4,0.1755856]
[1767039009540,0.17036,2938.4,2936.5,4.37893052]
[1767039011635,40.8,2938.8,2936.4,0.1755856]
[1767039011939,40.8,2938.8,2936.6,4.657]
[1767039012535,0.17037,2938.2,2936.6,4.657]
[1767039013135,0.17037,2938.2,2936.7,4.656]
[1767039016734,0.17034,2938.7,2936.7,4.656]
[1767039018142,0.17034,2938.7,2936.8,0.17045]
[1767039019334,0.17034,2938.6,2936.8,0.17045]
[1767039020336,0.17035,2938.5,2936.8,0.17045]
[1767039020842,0.17036,2938.4,2936.9,4.655]
[1767039021345,0.17036,2938.3,2936.9,4.655]
[1767039021647,0.17036,2938.3,2936.7,4.655]
[1767039022647,0.17035,2938.6,2936.7,4.82545]
[1767039025743,0.17035,2938.5,2936.7,0.17045]
[1767039025949,0.17035,2938.5,2936.8,4.654]
[1767039027742,0.17036,2938.3,2936.9,4.653]
[1767039028346,41.73240667,2938.9,2936.9,4.653]
[1767039028652,0.93240667,2938.9,2936.9,4.653]
[1767039030750,0.93240667,2938.9,2936.9,7.88873445]
[1767039031251,0.93240667,2938.9,2937.0,3.06529445]
[1767039031448,0.93240667,2938.9,2936.9,4.82344]
[1767039031449,0.93240667,2938.9,2936.9,7.88873445]
[1767039031748,0.93240667,2938.9,2937.0,3.06529445]
[1767039031950,0.03,2940.0,2937.6,0.1704]
[1767039032149,0.17031,2939.2,2938.5,0.00510621]
[1767039032353,0.17031,2939.2,2938.5,0.00755686]
[1767039032555,0.17031,2939.2,2937.4,3.06529445]
[1767039032852,0.17031,2939.2,2937.5,4.653]
[1767039033649,0.00507488,2938.6,2938.1,0.00510621]
[1767039033850,0.00507488,2938.6,2937.8,4.653]
[1767039034057,0.00507488,2938.6,2937.5,0.00290143]
[1767039034755,0.00507488,2938.6,2937.8,0.00510621]
[1767039047068,0.17035,2938.5,2937.8,0.00510621]
[1767039047269,0.17035,2938.5,2937.5,0.00290143]
[1767039048266,0.17035,2938.5,2937.7,0.00510621]
[1767039049274,0.00507488,2938.6,2937.5,0.00290143]
[1767039049465,0.17037,2938.2,2937.5,0.00290143]
[1767039049667,0.17037,2938.2,2936.7,3.06529445]
[1767039049864,0.17037,2938.2,2936.6,3.06529445]
[1767039050165,0.17037,2938.2,2936.6,7.71629445]
[1767039050366,0.17037,2938.2,2937.1,0.00510621]
[1767039050772,0.17037,2938.2,2937.1,0.00774345]
[1767039051072,0.17037,2938.1,2937.1,0.00774345]
[1767039052270,0.17038,2938.0,2937.1,0.00774345]
[1767039052471,0.1704,2937.8,2937.1,0.00774345]
[1767039052772,0.1704,2937.8,2936.3,4.651]
[1767039052968,0.17041,2937.5,2936.1,4.651]
[1767039053574,0.00510621,2937.1,2936.5,0.00510621]
[1767039053771,0.00952237,2937.1,2936.5,0.00510621]
[1767039053980,0.00952237,2937.1,2936.1,0.00290233]
[1767039054864,0.00952237,2937.1,2936.3,0.00343547]
[1767039057871,0.17044,2937.0,2936.1,0.00290233]
[1767039058079,0.17044,2937.0,2935.7,4.652]
[1767039058474,0.17044,2936.9,2935.4,3.06529445]
[1767039058975,40.97044,2936.9,2935.4,3.06866576]
[1767039059377,40.97044,2936.9,2935.4,0.00337131]
[1767039061375,40.8,2936.9,2935.4,0.00337131]
[1767039061681,0.00952237,2937.1,2935.4,0.00337131]
[1767039063179,0.00952237,2937.1,2935.5,4.653]
[1767039066478,0.00952237,2937.1,2935.6,4.653]
[1767039067681,0.00952237,2937.1,2935.7,1.62128253]
[1767039070887,0.00952237,2937.1,2935.8,4.48541889]
[1767039071285,0.00952237,2937.1,2935.9,4.653]
[1767039074991,0.1704,2937.7,2936.2,1.62128253]
[1767039075585,6.315,2939.5,2936.2,1.62128253]
[1767039075586,7.756,2939.7,2936.7,1.62128253]
[1767039075780,1.62128253,2939.5,2936.8,4.657]
[1767039075980,0.00510621,2938.1,2937.5,0.00510621]
[1767039076183,0.00510621,2938.1,2937.5,0.00890788]
[1767039076385,0.00510621,2938.1,2937.6,4.657]
[1767039076591,0.00510621,2938.1,2937.5,0.00890788]
[1767039076779,0.00510621,2938.1,2937.5,4.66590788]
[1767039077184,0.00510621,2938.1,2937.5,0.00890788]
[1767039082089,0.17547621,2938.1,2937.5,0.00890788]
[1767039082291,0.17547621,2938.1,2936.6,4.656]
[1767039082988,0.17038,2938.0,2936.6,4.656]
[1767039083191,0.17039,2937.9,2936.6,4.65999246]
[1767039083493,0.17039,2937.8,2936.6,0.00399246]
[1767039085393,0.17041,2937.6,2936.6,0.00399246]
[1767039093606,0.17041,2937.6,2936.6,1.12965067]
[1767039095211,0.17041,2937.6,2936.6,0.00399246]
[1767039100413,0.17041,2937.6,2936.6,1.12965067]
[1767039101209,0.17041,2937.6,2936.6,0.00399246]
[1767039103317,1.12565821,2936.9,2935.7,2.909]
[1767039103614,0.00510621,2936.6,2935.8,1.12565821]
[1767039103810,0.00510621,2936.6,2935.8,5.77765821]
[1767039104219,0.00887376,2936.6,2936.0,1.12565821]
[1767039104617,0.17043,2937.1,2936.2,1.12565821]
[1767039104813,0.17043,2937.1,2935.8,4.6555639]
[1767039104814,0.17043,2937.1,2936.0,1.12565821]
[1767039105723,0.00510621,2936.8,2936.3,0.00510621]
[1767039110632,0.00510621,2936.8,2935.9,4.653]
[1767039111221,0.00510621,2936.8,2936.0,1.12565821]
[1767039112625,0.00510621,2936.8,2935.9,4.653]
[1767039117026,0.00510621,2936.8,2935.8,0.0035639]
[1767039117227,0.00510621,2936.8,2936.0,4.662]
[1767039121930,0.17047,2936.4,2935.7,3.04849944]
[1767039122129,0.17047,2936.4,2935.7,2.64463987]
[1767039122326,0.17047,2936.4,2935.4,4.67]
[1767039122530,0.17049,2936.1,2934.6,4.26789921]
[1767039122735,0.17049,2936.1,2934.7,4.67]
[1767039123025,0.17049,2936.1,2934.7,4.67386507]
[1767039123229,0.17049,2936.1,2934.7,0.00386507]
[1767039123427,0.17049,2936.1,2934.8,4.67]
[1767039134042,0.17049,2936.1,2934.9,4.669]
[1767039136245,0.17049,2936.1,2934.7,0.00386507]
[1767039136548,0.17049,2936.1,2934.8,4.669]
[1767039143855,40.80510621,2936.8,2934.7,0.00386507]
[1767039144051,1.12595747,2936.4,2934.8,3.003]
[1767039144246,0.1705,2936.0,2934.8,3.003]
[1767039155152,0.1705,2936.0,2934.7,0.00386507]
[1767039155353,0.1705,2936.0,2934.7,4.67086507]
[1767039155548,0.1705,2936.0,2934.7,0.00386507]
[1767039156446,0.17052,2935.6,2934.1,8.93389921]
[1767039156654,0.00510621,2935.1,2933.7,4.26789921]
[1767039156855,0.00510621,2935.1,2933.7,8.93489921]
[1767039157156,0.00510621,2935.1,2933.7,4.667]
[1767039157560,0.00510621,2935.1,2933.7,4.66959138]
[1767039162561,0.17052,2935.6,2934.0,1.12595747]
[1767039162955,0.17052,2935.6,2933.7,4.66959138]
[1767039163557,0.00510621,2934.9,2934.4,0.00510621]
[1767039163762,0.17052,2935.6,2934.4,0.00510621]
[1767039164866,0.00510621,2935.3,2934.4,0.00510621]
[1767039170166,0.17564621,2935.3,2934.4,0.00510621]
[1767039170364,0.00510621,2935.3,2934.4,0.00510621]
[1767039170575,0.17055,2935.1,2934.4,0.00510621]
[1767039173478,0.17055,2935.1,2933.7,0.00259138]
[1767039174475,1.29830452,2935.1,2934.1,0.00510621]
[1767039174781,0.17055,2935.1,2934.1,0.00510621]
[1767039180686,0.17055,2935.1,2934.1,1.13286073]
[1767039182277,0.17055,2935.1,2934.1,0.00510621]
[1767039182587,0.00510621,2935.3,2934.3,1.12775452]
[1767039183587,0.00510621,2935.3,2934.1,0.00510621]
[1767039186286,0.00510621,2935.3,2934.3,1.12775452]
[1767039194691,0.00510621,2935.3,2934.1,0.00510621]
[1767039194891,1.12775452,2935.1,2934.1,0.00510621]
[1767039195492,1.30340073,2935.3,2934.1,0.00510621]
[1767039197198,1.12775452,2935.0,2934.1,0.00510621]
[1767039197600,1.29831452,2935.0,2934.1,0.00510621]
[1767039197989,1.12775452,2934.8,2934.1,0.00510621]
[1767039198699,1.12775452,2934.8,2933.7,0.00259138]
[1767039204199,1.29832452,2934.8,2933.7,0.00259138]
[1767039204399,1.12775452,2934.6,2933.7,0.00259138]
[1767039205001,0.17057,2934.7,2933.7,0.00259138]
[1767039205298,1.12775452,2934.6,2933.7,0.00259138]
[1767039209392,1.12775452,2934.3,2933.7,0.00259138]
[1767039209598,1.12775452,2934.3,2933.7,1e-08]
[1767039210703,1.12775452,2934.3,2932.9,1.12775452]
[1767039210902,0.17059,2934.4,2933.1,1.12775452]
[1767039211803,0.17059,2934.4,2933.1,1.13064955]
[1767039212202,0.17059,2934.4,2933.3,1.12775452]
[1767039212397,0.17059,2934.4,2933.4,1.12775452]
[1767039217204,0.17059,2934.4,2933.1,0.00289503]
[1767039217205,0.17056,2934.9,2934.0,1.12775452]
[1767039217508,0.00510621,2935.3,2934.3,1.12775452]
[1767039218902,0.00510621,2935.3,2934.1,1.12775452]
[1767039224512,0.00510621,2935.3,2934.4,1.12775452]
[1767039225615,0.00510621,2935.3,2934.6,1.12775452]
[1767039225913,0.00510621,2935.3,2934.0,1.12775452]
[1767039225914,0.00510621,2935.3,2934.4,1.12775452]
[1767039227918,0.00510621,2935.3,2934.2,1.12775452]
[1767039229517,0.00510621,2935.3,2934.5,1.12775452]
[1767039229719,0.00510621,2935.3,2934.7,1.12775452]
[1767039229915,0.00510621,2935.3,2934.5,1.12775452]
[1767039232216,0.17053,2935.5,2934.5,1.12775452]
[1767039232421,0.00412533,2935.6,2934.9,1.12775452]
[1767039232621,0.17049,2936.1,2935.1,1.12775452]
[1767039232810,0.17049,2936.1,2934.9,1.12775452]
[1767039233210,0.00510621,2935.8,2935.2,0.00510621]
[1767039233622,0.17049,2936.1,2935.2,0.00908683]
[1767039234621,0.00510621,2935.9,2935.2,0.00908683]
[1767039242719,0.00389266,2936.1,2935.2,0.00908683]
[1767039242922,0.25818463,2936.6,2935.2,0.00908683]
[1767039243718,0.00510621,2936.2,2935.2,0.00908683]
[1767039243926,0.25818463,2936.6,2935.2,0.00908683]
[1767039244925,0.00510621,2936.2,2935.2,0.00908683]
[1767039248321,0.17559621,2936.2,2935.2,0.00908683]
[1767039250733,0.00510621,2936.2,2935.2,0.00908683]
[1767039252535,0.1705,2936.0,2935.2,0.00908683]
[1767039253033,0.00510621,2936.2,2935.2,0.00908683]
[1767039253627,6.21e-06,2936.2,2935.2,0.00908683]
[1767039255236,0.00282911,2936.6,2935.4,1.12675019]
[1767039255830,0.00282911,2936.6,2935.2,0.00908683]
[1767039256235,0.00510621,2936.2,2935.2,0.00908683]
[1767039259035,0.17044,2937.0,2935.9,1.12675019]
[1767039259431,6.4854,2937.8,2935.9,1.12675019]
[1767039259739,8.54076639,2937.9,2935.9,1.12675019]
[1767039259740,40.9704,2937.7,2935.9,1.12675019]
[1767039260235,0.00340414,2937.1,2935.9,1.12675019]
[1767039262639,0.1704,2937.6,2936.3,1.12675019]
[1767039271445,0.1704,2937.6,2936.0,1.12675019]
[1767039271840,0.1704,2937.6,2936.0,5.59821565]
[1767039277147,0.17037,2938.2,2936.0,5.76870565]
[1767039277353,0.17037,2938.2,2936.8,0.00510621]
[1767039277951,0.17037,2938.1,2936.8,0.00510621]
[1767039279646,0.17037,2938.1,2936.9,4.66]
[1767039281154,0.17037,2938.1,2936.8,0.00510621]
[1767039281648,40.8,2938.8,2936.8,0.00510621]
[1767039281849,0.17034,2938.7,2936.8,0.00510621]
[1767039282049,0.17034,2938.7,2936.9,1.12675019]
[1767039282847,7.882,2939.3,2937.3,1.12675019]
[1767039283049,0.17033,2939.0,2937.3,0.00439086]
[1767039283547,0.17033,2939.0,2937.4,4.598]
[1767039284349,0.17033,2939.0,2937.5,4.659]
[1767039284554,0.17033,2939.0,2937.6,1.12675019]
[1767039284755,1.78171755,2940.0,2937.5,4.659]
[1767039284756,0.17028,2939.7,2938.0,1.12675019]
[1767039284953,0.17029,2939.6,2938.6,0.00510621]
[1767039286264,0.03,2940.0,2938.6,0.00510621]
[1767039286958,0.03,2940.0,2938.8,1.12675019]
[1767039287863,0.03,2940.0,2938.6,0.00510621]
[1767039288057,0.03,2940.0,2938.7,3.341]
[1767039290957,1.15675019,2940.0,2938.6,0.00510621]
[1767039292554,0.17028,2939.7,2938.6,0.00510621]
[1767039302158,0.03,2940.0,2938.6,0.00510621]
[1767039303470,0.1703,2939.4,2938.6,0.00510621]
[1767039306271,1.61888374,2939.2,2937.3,0.00439086]
[1767039306477,0.17032,2939.1,2937.3,0.00439086]
[1767039306676,0.17032,2939.1,2937.3,1.6232746]
[1767039307274,0.00510621,2938.5,2937.9,0.00510621]
[1767039310082,6.21e-06,2938.5,2937.9,0.00510621]
[1767039322394,6.21e-06,2938.5,2937.9,1.12966469]
[1767039322688,0.17032,2939.0,2938.2,1.12455848]
[1767039322881,0.17029,2939.6,2938.2,1.12455848]
[1767039323090,0.17029,2939.6,2938.5,1.12455848]
[1767039325994,0.17029,2939.6,2938.2,1.12455848]
[1767039326196,1.29484848,2939.6,2938.2,1.12455848]
[1767039328294,1.12455848,2939.4,2938.0,1.12455848]
[1767039328589,0.1703,2939.5,2938.0,1.12455848]
[1767039328794,1.29485848,2939.5,2938.0,1.12455848]
[1767039329888,1.29485848,2939.5,2938.2,1.12455848]
[1767039330697,0.1703,2939.5,2938.2,1.12455848]
[1767039331194,0.1703,2939.5,2938.4,1.12455848]
[1767039331393,0.1703,2939.5,2938.6,1.12455848]
[1767039333494,0.03,2940.0,2939.0,1.12455848]
[1767039334295,0.03,2940.0,2939.2,1.12455848]
[1767039334498,0.03,2940.0,2938.8,5.77955848]
[1767039336201,0.03,2940.0,2939.0,1.12455848]
[1767039339199,0.03,2940.0,2938.8,4.655]
[1767039339399,1.29483848,2939.8,2938.4,1.12455848]
[1767039339604,1.12455848,2939.6,2938.3,4.654]
[1767039340300,1.12455848,2939.8,2938.3,4.654]
[1767039340695,1.12455848,2939.8,2937.7,0.1704]
[1767039340892,1.12455848,2939.0,2937.4,1.12455848]
[1767039341092,0.17032,2939.1,2938.2,1.12455848]
[1767039341702,0.17032,2939.1,2938.4,1.12455848]
[1767039341902,0.17032,2939.1,2938.2,1.12455848]
[1767039343098,40.8,2939.7,2938.2,1.12455848]
[1767039343299,42.09483848,2939.7,2938.2,1.12455848]
[1767039343904,40.97028,2939.7,2938.7,1.12455848]
[1767039344104,40.97028,2939.7,2938.5,1.12455848]
[1767039344808,0.17028,2939.7,2938.5,1.12455848]
[1767039345900,0.03,2940.0,2939.0,1.12455848]
[1767039346305,0.03,2940.0,2939.2,1.12455848]
[1767039346699,0.03,2940.0,2939.0,1.12455848]
[1767039347107,0.03,2940.0,2938.9,1.12455848]
[1767039349107,0.03,2940.0,2939.1,1.12455848]
[1767039350305,0.03,2940.0,2939.3,1.12455848]
[1767039350604,0.17021,2940.9,2939.9,1.12455848]
[1767039350810,0.17022,2940.8,2940.1,0.00510621]
[1767039351004,1.12455848,2940.7,2940.1,0.00510621]
[1767039352111,0.17022,2940.8,2940.1,0.00510621]
[1767039352913,1.12455848,2940.7,2940.1,0.00510621]
[1767039353602,0.17022,2940.8,2939.9,0.00286848]
[1767039353603,1.12455848,2940.5,2939.9,0.00286848]
[1767039354608,1.12966469,2940.5,2939.9,0.00797469]
[1767039355309,1.12455848,2940.1,2938.8,3.171]
[1767039355513,1.29480848,2940.3,2938.9,1.12455848]
[1767039356306,1.12455848,2940.0,2939.3,0.00510621]
[1767039356509,0.17026,2940.1,2939.3,0.00510621]
[1767039357510,0.17026,2940.0,2939.3,0.00510621]
[1767039357723,0.17028,2939.8,2938.9,0.00332068]
[1767039358713,0.17028,2939.8,2939.1,0.00510621]
[1767039361512,0.17028,2939.8,2938.9,0.00332068]
[1767039362613,0.1703,2939.4,2937.7,4.43828921]
[1767039362818,0.1703,2939.4,2937.7,4.82039]
[1767039363614,0.00510621,2938.8,2938.3,0.00510621]
[1767039364112,0.1703,2939.4,2938.3,0.00510621]
[1767039365005,0.00510621,2939.1,2938.3,0.00510621]
[1767039365916,0.1703,2939.4,2938.3,0.00510621]
[1767039366707,0.17027,2940.0,2938.3,0.00510621]
[1767039366908,0.17027,2940.0,2938.4,4.5015018]
[1767039367918,0.17027,2940.0,2938.3,0.17546621]
[1767039367919,0.17027,2940.0,2938.5,4.651]
[1767039368216,0.00510621,2939.5,2938.5,4.651]
[1767039368417,0.17027,2940.0,2938.5,4.651]
[1767039369113,0.00286848,2940.3,2938.5,4.651]
[1767039369511,0.00510621,2939.7,2938.5,4.651]
[1767039370017,0.00286848,2940.3,2938.5,4.651]
[1767039370217,0.00286848,2940.3,2938.5,4.82135]
[1767039370420,0.00286848,2940.3,2938.6,0.17034]
[1767039371615,0.00286848,2940.3,2938.7,4.58169155]
[1767039371812,0.00286848,2940.3,2938.9,0.17033]
[1767039372013,0.17022,2940.8,2938.9,0.17033]
[1767039372213,0.17022,2940.8,2939.0,4.653]
[1767039372515,0.17022,2940.8,2939.0,9.27183492]
[1767039372920,0.17354068,2940.8,2939.0,9.27183492]
[1767039374625,0.17018,2941.4,2939.1,1.83470334]
[1767039374813,0.63266772,2942.3,2940.0,0.00510621]
[1767039375017,0.17017,2941.7,2940.1,4.656]
[1767039375615,0.17017,2941.7,2940.1,4.66009895]
[1767039377509,40.97014,2942.2,2940.1,4.66009895]
[1767039377722,40.97014,2942.2,2940.2,4.42518225]
[1767039378420,0.17014,2942.2,2940.2,4.42518225]
[1767039378616,7.834,2942.9,2940.1,4.66009895]
[1767039378816,40.8,2942.8,2940.1,4.66009895]
[1767039379222,0.17014,2942.2,2940.1,4.66009895]
[1767039379415,0.17014,2942.2,2940.2,4.37410292]
[1767039379610,0.17015,2942.1,2940.2,4.37410292]
[1767039379810,40.85918081,2942.8,2940.1,0.00409895]
[1767039380011,0.17018,2941.5,2940.1,3.86109895]
[1767039380410,40.85918081,2942.8,2940.2,4.34930867]
[1767039380411,40.8,2942.8,2940.2,4.34930867]
[1767039380616,0.17015,2942.1,2940.2,4.34930867]
[1767039381120,40.8,2942.8,2940.1,3.86109895]
[1767039381121,0.17015,2942.0,2940.1,3.86109895]
[1767039381524,0.17012,2942.5,2940.3,0.17025]
[1767039381820,0.17012,2942.5,2940.4,4.39417426]
[1767039382130,0.17015,2942.1,2940.1,0.00409895]
[1767039382320,0.75230476,2943.7,2940.4,0.17024]
[1767039382519,2.635,2943.6,2941.8,0.00510621]
[1767039382823,0.17011,2942.7,2941.8,0.00510621]
[1767039383719,48.636,2943.5,2941.8,0.00510621]
[1767039383918,0.17011,2942.8,2941.8,0.00510621]
[1767039385119,0.688,2943.4,2941.8,0.00510621]
[1767039385711,0.17012,2942.5,2941.8,0.00510621]
[1767039385911,0.17014,2942.2,2940.1,1.42468253]
[1767039386113,0.17014,2942.2,2940.6,0.329]
[1767039386716,0.17014,2942.1,2940.6,0.329]
[1767039386925,0.00507642,2941.6,2941.1,0.00509727]
[1767039390830,0.17018,2941.4,2940.1,0.00409895]
[1767039391831,0.17018,2941.4,2940.5,0.00509727]
[1767039392224,0.00507642,2941.6,2940.5,0.00509727]
[1767039393532,0.17016,2941.8,2940.5,0.00509727]
[1767039393730,0.17009,2943.0,2940.6,4.49290276]
[1767039393930,0.1701,2942.9,2940.6,4.49290276]
[1767039394223,40.9701,2942.9,2940.6,4.49290276]
[1767039394427,0.1701,2942.8,2940.6,4.49290276]
[1767039394933,0.1701,2942.8,2940.7,0.17022]
[1767039395434,0.1701,2942.8,2940.8,4.47404745]
[1767039395622,0.1701,2942.8,2940.9,4.82221]
[1767039395823,0.17006,2943.5,2941.1,0.1702]
[1767039396030,0.17006,2943.5,2942.0,0.00509727]
[1767039401130,0.75230476,2943.7,2942.0,0.00509727]
[1767039401335,0.75230476,2943.7,2942.1,4.47297298]
[1767039401533,0.75230476,2943.7,2942.0,0.00509727]
[1767039402536,0.92235476,2943.7,2942.0,0.00509727]
[1767039403135,0.17006,2943.6,2942.0,0.00509727]
[1767039404037,0.17006,2943.5,2942.0,0.00509727]
[1767039405238,8.60330476,2943.7,2942.0,0.00509727]
[1767039406640,0.17009,2943.0,2942.0,0.00509727]
[1767039407541,1.83470334,2942.6,2941.2,0.24264699]
[1767039407842,8.78878445,2942.5,2939.5,0.17029]
[1767039408042,0.17016,2941.9,2939.5,0.17029]
[1767039408244,0.17016,2941.9,2939.6,0.17028]
[1767039408642,0.00509727,2941.3,2940.7,0.00509727]
[1767039408842,0.00509727,2941.3,2939.6,0.17028]
[1767039410048,0.00509727,2941.3,2940.4,0.00509727]
[1767039411138,0.17011,2942.6,2940.4,0.00509727]
[1767039411548,0.17013,2942.4,2940.4,0.00509727]
[1767039412155,0.00509727,2941.7,2940.4,0.00509727]
[1767039423954,0.17526727,2941.7,2940.4,0.00509727]
[1767039424156,7.82309727,2941.7,2940.4,0.00509727]
[1767039425654,0.17018,2941.5,2940.4,0.00509727]
[1767039430152,7.82309727,2941.7,2940.4,0.00509727]
[1767039430655,0.17019,2941.3,2940.4,0.00509727]
[1767039438062,0.00509727,2941.7,2940.4,0.00509727]
[1767039438865,0.17018,2941.5,2940.4,0.00509727]
[1767039439053,0.17018,2941.4,2940.4,0.00509727]
[1767039439560,0.00509727,2941.7,2940.4,0.00509727]
[1767039463085,0.00509727,2941.7,2940.5,4.43132574]
[1767039463389,0.17011,2942.6,2940.5,4.60155574]
[1767039463786,0.17011,2942.6,2940.9,1.61639366]
[1767039464089,0.17011,2942.6,2941.0,4.42898312]
[1767039467479,0.17011,2942.6,2940.8,0.17022]
[1767039467679,1.61639366,2942.9,2940.4,0.00509727]
[1767039467878,0.17014,2942.2,2940.4,0.00509727]
[1767039468693,0.17014,2942.1,2940.4,0.00509727]
[1767039469792,40.8,2942.0,2940.4,0.00509727]
[1767039470292,0.17014,2942.1,2940.4,0.00509727]
[1767039470694,40.97014,2942.1,2940.4,0.00509727]
[1767039473095,40.8,2942.1,2940.4,0.00509727]
[1767039473300,0.17016,2941.9,2940.4,0.00509727]
[1767039473885,1.78657366,2941.4,2940.1,0.00409895]
[1767039474196,1.62149093,2941.4,2939.0,9.08221921]
[1767039474498,1.62149093,2941.4,2939.0,4.81432]
[1767039474890,9.38849093,2941.4,2939.0,4.81432]
[1767039475090,9.39150708,2941.4,2939.9,0.00509727]
[1767039475393,1.78663366,2940.4,2939.0,0.00343925]
[1767039475595,0.17025,2940.3,2939.0,0.00343925]
[1767039476300,0.17026,2940.2,2939.0,0.00343925]
[1767039477296,0.00509727,2939.9,2939.3,0.00509727]
[1767039477488,0.00509727,2939.9,2939.0,0.00343925]
[1767039478595,0.00509727,2939.9,2939.2,0.00509727]
[1767039485806,0.17536727,2939.9,2939.0,0.00343925]
[1767039486196,0.00509727,2939.9,2939.0,0.00343925]
[1767039486500,0.17028,2939.7,2937.8,0.11949803]
[1767039486705,0.17028,2939.7,2938.5,0.00509727]
[1767039487299,0.17028,2939.7,2938.5,0.00912239]
[1767039490702,0.1703,2939.4,2938.5,0.00912239]
[1767039491409,40.8,2939.8,2938.5,0.00912239]
[1767039491611,0.00509727,2939.9,2938.5,0.00912239]
[1767039496113,0.17028,2939.7,2938.5,0.00912239]
[1767039497923,0.00509727,2939.9,2938.5,0.00912239]
[1767039499318,0.17028,2939.7,2938.5,0.00912239]
[1767039499623,0.17029,2939.6,2938.5,0.00912239]
[1767039500611,0.17033,2938.9,2937.8,0.11949803]
[1767039500815,0.17033,2938.9,2936.9,0.17044]
[1767039501617,0.00509727,2938.2,2937.6,0.0033982]
[1767039504720,0.00509727,2938.2,2936.9,0.00358478]
[1767039508227,0.00509727,2938.2,2936.9,0.17402478]
[1767039510233,0.00313456,2938.9,2937.3,0.0051063]
[1767039511334,0.0051063,2938.4,2937.3,0.0051063]
[1767039513533,0.00313456,2938.9,2937.3,0.0051063]
[1767039513732,0.00313456,2938.9,2937.4,4.34494626]
[1767039513931,6.48527,2939.9,2937.4,4.34494626]
[1767039514132,0.17027,2939.9,2938.0,0.17038]
[1767039514335,0.17027,2939.9,2938.1,4.643]
[1767039514536,0.17027,2939.9,2938.1,9.01418622]
[1767039514737,0.0051063,2939.3,2938.1,9.01418622]
[1767039514935,0.00816,2939.3,2938.1,9.01418622]
[1767039515130,0.17027,2939.9,2938.1,9.01418622]
[1767039516140,0.00290229,2939.9,2938.1,9.01418622]
[1767039516337,0.00290229,2939.9,2938.2,0.17037]
[1767039516730,0.00290229,2939.9,2937.5,0.17041]
[1767039516932,0.00290229,2939.9,2937.6,2.286]
[1767039517138,0.00290229,2939.9,2937.7,4.49390691]
[1767039517433,0.0051063,2939.1,2937.6,2.286]
[1767039517738,0.0051063,2939.1,2937.8,4.44746216]
[1767039517937,0.0051063,2939.1,2937.7,4.44746216]
[1767039518239,0.0051063,2939.1,2937.7,4.35204816]
[1767039519134,0.0051063,2939.1,2937.5,0.17041]
[1767039519335,0.0051063,2939.1,2937.8,4.644]
[1767039524047,0.0051063,2939.1,2937.5,0.17041]
[1767039524242,0.0051063,2939.1,2937.3,0.0051063]
[1767039524648,40.8051063,2939.1,2937.3,0.0051063]
[1767039525248,0.17033,2938.9,2937.3,0.0051063]
[1767039528656,0.17033,2938.9,2937.4,4.48]
[1767039532664,0.0051063,2939.1,2937.4,4.48]
[1767039532665,0.0051063,2939.1,2937.5,4.53368911]
[1767039534556,0.0051063,2939.1,2937.4,4.48]
[1767039534557,0.0051063,2939.1,2937.3,0.0051063]
[1767039534759,0.1754263,2939.1,2937.4,4.643]
[1767039536366,0.0051063,2939.1,2937.3,0.0051063]
[1767039536567,0.17035,2938.6,2937.3,0.0051063]
[1767039541977,0.0051063,2939.1,2937.3,0.0051063]
[1767039543073,1.62031226,2938.7,2937.3,0.0051063]
[1767039543462,0.17038,2938.1,2937.3,0.0051063]
[1767039544373,0.17039,2937.8,2936.9,0.00358478]
[1767039544579,0.17310831,2937.8,2936.9,0.00358478]
[1767039545378,0.17310831,2937.8,2937.1,0.0051063]
[1767039546574,0.17310831,2937.8,2936.9,0.00358478]
[1767039546881,0.1704,2937.7,2935.8,1.576]
[1767039547772,0.0051063,2937.0,2936.5,0.0051063]
[1767039553588,0.1704,2937.7,2936.5,0.0051063]
[1767039554684,0.0051063,2937.4,2936.5,0.0051063]
[1767039555880,0.17042,2937.3,2936.5,0.0051063]
[1767039558381,0.0051063,2937.4,2936.5,0.0051063]
[1767039565296,0.1704,2937.7,2936.5,0.0051063]
[1767039566291,0.0051063,2937.4,2936.5,0.0051063]
[1767039568800,0.00271831,2937.8,2936.5,0.0051063]
[1767039569890,0.0051063,2937.4,2936.5,0.0051063]
[1767039570090,0.00271831,2937.8,2936.5,0.0051063]
[1767039570990,0.00338313,2937.4,2936.5,0.0051063]
[1767039571302,0.00271831,2937.8,2936.5,0.0051063]
[1767039571493,0.17036,2938.3,2936.5,1.79587856]
[1767039572694,0.00249385,2938.3,2936.8,0.17045]
[1767039572901,0.00249385,2938.3,2936.9,4.64]
[1767039575893,0.00249385,2938.3,2937.0,4.642]
[1767039576201,0.00249385,2938.3,2936.5,0.0051063]
[1767039576407,0.17285385,2938.3,2936.6,4.642]
[1767039578595,0.17285385,2938.3,2936.6,4.81246]
[1767039581005,0.00249385,2938.3,2936.8,0.17045]
[1767039582500,40.8,2939.6,2937.5,1.62031226]
[1767039582501,0.1703,2939.4,2937.5,1.62031226]
[1767039582797,0.1703,2939.4,2938.2,0.0051063]
[1767039583505,0.17297079,2939.4,2938.2,0.00907184]
[1767039584305,0.17031,2939.3,2938.2,0.00907184]
[1767039591912,0.17032,2939.0,2938.2,0.00907184]
[1767039596722,0.17033,2938.9,2937.2,1.956]
[1767039597723,0.17033,2938.9,2937.8,0.0051063]
[1767039597724,0.0051063,2938.3,2937.8,0.0051063]
[1767039605929,0.0051063,2938.3,2937.2,1.95902739]
[1767039605930,0.17037,2938.2,2937.2,0.00302739]
[1767039606129,0.17038,2938.0,2937.2,0.00302739]
[1767039606437,40.8,2937.9,2937.2,0.00302739]
[1767039606934,40.8,2937.9,2937.3,0.0051063]
[1767039608231,0.17038,2938.0,2937.3,0.0051063]
[1767039616532,0.17039,2937.9,2937.3,0.0051063]
[1767039616737,0.1704,2937.7,2935.7,4.26789921]
[1767039616934,0.1704,2937.7,2935.9,3.616]
[1767039617538,40.97037,2938.2,2936.0,4.41374817]
[1767039617741,0.17037,2938.2,2936.0,4.41374817]
[1767039617941,0.17037,2938.2,2936.8,0.0051063]